[Event "*** SCC Grand Prix: Titled Tuesday Blitz"]
[Site "Chess.com"]
[Date "2020.09.29"]
[Round "3"]
[White "cassoulet"]
[Black "Funo09"]
[Result "0-1"]
[WhiteElo "2644"]
[BlackElo "2854"]
[TimeControl "180+1"]
[EndTime "10:27:40 PDT"]
[Termination "Funo09 won by resignation"]

1. e4 {[%clk 0:03:00.9]} 1... Nf6 {[%clk 0:02:59.2]} 2. e5 {[%clk 0:03:00.5]}
2... Nd5 {[%clk 0:02:59.5]} 3. Nf3 {[%clk 0:03:00.7]} 3... Nb6 {[%clk
0:02:59.6]} 4. d4 {[%clk 0:03:01.6]} 4... d5 {[%clk 0:02:59.9]} 5. a4 {[%clk
0:03:01.6]} 5... Bg4 {[%clk 0:02:59]} 6. a5 {[%clk 0:03:01.2]} 6... N6d7 {[%clk
0:02:59.4]} 7. a6 {[%clk 0:03:00.9]} 7... Nxa6 {[%clk 0:02:57]} 8. Bxa6 {[%clk
0:02:59.8]} 8... bxa6 {[%clk 0:02:57.5]} 9. Rxa6 {[%clk 0:03:00.7]} 9... e6
{[%clk 0:02:55.9]} 10. O-O {[%clk 0:02:56.8]} 10... Be7 {[%clk 0:02:53]} 11. h3
{[%clk 0:02:56.2]} 11... Bh5 {[%clk 0:02:53.3]} 12. c3 {[%clk 0:02:49.9]} 12...
O-O {[%clk 0:02:52.3]} 13. b4 {[%clk 0:02:49.7]} 13... Qb8 {[%clk 0:02:41.1]}
14. Qd3 {[%clk 0:02:42]} 14... Bg6 {[%clk 0:02:38.5]} 15. Qe2 {[%clk 0:02:33.4]}
15... Bxb1 {[%clk 0:02:37.2]} 16. Bg5 {[%clk 0:02:30.9]} 16... Bxg5 {[%clk
0:02:34.2]} 17. Rxb1 {[%clk 0:02:23.9]} 17... Be7 {[%clk 0:02:32.4]} 18. Rba1
{[%clk 0:02:23.7]} 18... Nb6 {[%clk 0:02:21.8]} 19. Nd2 {[%clk 0:02:21.3]} 19...
Qb7 {[%clk 0:02:19]} 20. f4 {[%clk 0:02:18.5]} 20... f6 {[%clk 0:02:12.3]} 21.
Qg4 {[%clk 0:02:09.6]} 21... Qc6 {[%clk 0:02:11.5]} 22. Qg3 {[%clk 0:01:51.4]}
22... fxe5 {[%clk 0:02:06.6]} 23. fxe5 {[%clk 0:01:50.5]} 23... h6 {[%clk
0:01:31.6]} 24. Qd3 {[%clk 0:01:40]} 24... Bg5 {[%clk 0:01:19.3]} 25. Nf3 {[%clk
0:01:39.8]} 25... Qc4 {[%clk 0:01:19.4]} 26. Qg6 {[%clk 0:01:11.9]} 26... Qxc3
{[%clk 0:01:04.5]} 27. Qxe6+ {[%clk 0:01:01.5]} 27... Kh8 {[%clk 0:01:04.8]} 28.
R6a3 {[%clk 0:00:49.5]} 28... Qxb4 {[%clk 0:00:56.4]} 29. Kh1 {[%clk 0:00:45.4]}
29... Qe7 {[%clk 0:00:53.3]} 30. Qg4 {[%clk 0:00:43]} 30... Nc4 {[%clk
0:00:42.4]} 31. Rxa7 {[%clk 0:00:40.2]} 31... Rxa7 {[%clk 0:00:43.3]} 32. Rxa7
{[%clk 0:00:40.5]} 32... Ne3 {[%clk 0:00:36.7]} 33. Qg3 {[%clk 0:00:39.1]} 33...
Bf4 {[%clk 0:00:32.5]} 34. Qg6 {[%clk 0:00:37.8]} 34... Nf5 {[%clk 0:00:29.5]}
35. Qc6 {[%clk 0:00:34.4]} 35... Qb4 {[%clk 0:00:22.2]} 36. Ra1 {[%clk
0:00:23.7]} 36... Nxd4 {[%clk 0:00:22]} 37. Nxd4 {[%clk 0:00:15.2]} 37... Qxd4
{[%clk 0:00:22.9]} 38. Rf1 {[%clk 0:00:14.2]} 38... Qxe5 {[%clk 0:00:20.7]} 39.
Qg6 {[%clk 0:00:13.8]} 39... Qd6 {[%clk 0:00:16.4]} 40. Qg4 {[%clk 0:00:12.7]}
40... Bg5 {[%clk 0:00:16.1]} 41. Rd1 {[%clk 0:00:12]} 41... c6 {[%clk
0:00:15.6]} 0-1

[Event "*** SCC Grand Prix: Titled Tuesday Blitz"]
[Site "Chess.com"]
[Date "2020.09.29"]
[Round "3"]
[White "Iskusnyh"]
[Black "Sanan_Sjugirov"]
[Result "0-1"]
[WhiteElo "2545"]
[BlackElo "2847"]
[TimeControl "180+1"]
[EndTime "10:27:42 PDT"]
[Termination "Sanan_Sjugirov won on time"]

1. d4 {[%clk 0:03:00]} 1... Nf6 {[%clk 0:03:00]} 2. c4 {[%clk 0:03:00.4]} 2...
e6 {[%clk 0:02:55.8]} 3. g3 {[%clk 0:03:00.2]} 3... d5 {[%clk 0:02:55.2]} 4. Nf3
{[%clk 0:02:58.7]} 4... Bb4+ {[%clk 0:02:55.4]} 5. Bd2 {[%clk 0:02:57.6]} 5...
Be7 {[%clk 0:02:55.7]} 6. Bg2 {[%clk 0:02:57]} 6... O-O {[%clk 0:02:56.1]} 7.
O-O {[%clk 0:02:56.8]} 7... c6 {[%clk 0:02:56.5]} 8. Qc2 {[%clk 0:02:56.1]} 8...
Nbd7 {[%clk 0:02:53.7]} 9. a3 {[%clk 0:02:55.5]} 9... a5 {[%clk 0:02:34.3]} 10.
Rc1 {[%clk 0:02:23.5]} 10... Ne4 {[%clk 0:02:30.5]} 11. Be1 {[%clk 0:02:18.1]}
11... f5 {[%clk 0:02:20.5]} 12. Nbd2 {[%clk 0:02:16.4]} 12... Bd6 {[%clk
0:02:15.7]} 13. b4 {[%clk 0:01:42.2]} 13... g5 {[%clk 0:01:13.7]} 14. b5 {[%clk
0:01:11.3]} 14... g4 {[%clk 0:01:13]} 15. Nxe4 {[%clk 0:01:10.7]} 15... fxe4
{[%clk 0:01:09.5]} 16. Nd2 {[%clk 0:01:10.1]} 16... Nf6 {[%clk 0:00:50.9]} 17.
e3 {[%clk 0:01:00.7]} 17... Bd7 {[%clk 0:00:47.7]} 18. bxc6 {[%clk 0:00:48.3]}
18... Bxc6 {[%clk 0:00:43.7]} 19. Nb3 {[%clk 0:00:45.2]} 19... a4 {[%clk
0:00:40]} 20. Nc5 {[%clk 0:00:39.3]} 20... Qe7 {[%clk 0:00:38.7]} 21. cxd5
{[%clk 0:00:28.4]} 21... exd5 {[%clk 0:00:39.6]} 22. Rab1 {[%clk 0:00:26.2]}
22... Rfc8 {[%clk 0:00:34.2]} 23. Qa2 {[%clk 0:00:25.7]} 23... Kg7 {[%clk
0:00:32.2]} 24. Rb6 {[%clk 0:00:16.2]} 24... Kg6 {[%clk 0:00:29.7]} 25. Rcb1
{[%clk 0:00:14.9]} 25... Rc7 {[%clk 0:00:27.8]} 26. h4 {[%clk 0:00:09.8]} 26...
gxh3 {[%clk 0:00:26.2]} 27. Bxh3 {[%clk 0:00:09.8]} 27... Rg8 {[%clk 0:00:10.5]}
28. Qe2 {[%clk 0:00:09]} 28... Kf7 {[%clk 0:00:09.2]} 29. Be6+ {[%clk
0:00:07.4]} 29... Kg7 {[%clk 0:00:05]} 30. Bxg8 {[%clk 0:00:06.9]} 30... Kxg8
{[%clk 0:00:05.9]} 31. Nxb7 {[%clk 0:00:01.6]} 31... Rxb7 {[%clk 0:00:04.5]} 0-1

[Event "*** SCC Grand Prix: Titled Tuesday Blitz"]
[Site "Chess.com"]
[Date "2020.09.29"]
[Round "3"]
[White "PetrolulSah"]
[Black "Xeniya2005"]
[Result "1-0"]
[WhiteElo "2190"]
[BlackElo "2376"]
[TimeControl "180+1"]
[EndTime "10:27:44 PDT"]
[Termination "PetrolulSah won on time"]

1. d4 {[%clk 0:02:57.8]} 1... Nf6 {[%clk 0:02:26.9]} 2. g3 {[%clk 0:02:57.2]}
2... d5 {[%clk 0:02:25.2]} 3. Bg2 {[%clk 0:02:56]} 3... g6 {[%clk 0:02:25.2]} 4.
Nf3 {[%clk 0:02:56.4]} 4... Bg7 {[%clk 0:02:26.1]} 5. O-O {[%clk 0:02:56.7]}
5... O-O {[%clk 0:02:26.8]} 6. c4 {[%clk 0:02:57.1]} 6... dxc4 {[%clk
0:02:25.1]} 7. Qc2 {[%clk 0:02:56.4]} 7... Nc6 {[%clk 0:02:24.7]} 8. Qxc4 {[%clk
0:02:55.3]} 8... Be6 {[%clk 0:02:24.6]} 9. Qd3 {[%clk 0:02:53.6]} 9... Bf5
{[%clk 0:02:23.7]} 10. Qb3 {[%clk 0:02:50.2]} 10... Rb8 {[%clk 0:02:22.9]} 11.
e3 {[%clk 0:02:48]} 11... h6 {[%clk 0:01:37.4]} 12. Nc3 {[%clk 0:02:46.1]} 12...
a6 {[%clk 0:01:33.4]} 13. Rd1 {[%clk 0:02:43.2]} 13... Ne4 {[%clk 0:01:23.3]}
14. Ne5 {[%clk 0:02:38.6]} 14... Nxc3 {[%clk 0:01:18.9]} 15. Qxc3 {[%clk
0:02:31.5]} 15... Nxe5 {[%clk 0:01:18.2]} 16. e4 {[%clk 0:02:28.9]} 16... Be6
{[%clk 0:01:08.2]} 17. Bf4 {[%clk 0:02:23]} 17... Nc6 {[%clk 0:01:02.9]} 18. Be3
{[%clk 0:02:06.6]} 18... Kh7 {[%clk 0:00:53.3]} 19. Rac1 {[%clk 0:02:05.8]}
19... Rc8 {[%clk 0:00:46.3]} 20. b3 {[%clk 0:02:05]} 20... f5 {[%clk 0:00:38.7]}
21. Qc5 {[%clk 0:02:03]} 21... Bd7 {[%clk 0:00:31.7]} 22. d5 {[%clk 0:01:59.6]}
22... Ne5 {[%clk 0:00:30.4]} 23. f4 {[%clk 0:01:52.6]} 23... Ng4 {[%clk
0:00:28.9]} 24. Bd4 {[%clk 0:01:50]} 24... fxe4 {[%clk 0:00:23]} 25. Bxe4 {[%clk
0:01:45.1]} 25... Bf5 {[%clk 0:00:20.4]} 26. Bf3 {[%clk 0:01:43.2]} 26... b6
{[%clk 0:00:19.8]} 27. Qc3 {[%clk 0:01:41.1]} 27... Bxd4+ {[%clk 0:00:18.7]} 28.
Qxd4 {[%clk 0:01:40.3]} 28... Nf6 {[%clk 0:00:19.1]} 29. Re1 {[%clk 0:01:34.5]}
29... Qd7 {[%clk 0:00:19]} 30. Qe5 {[%clk 0:01:23.8]} 30... Rfe8 {[%clk
0:00:18.2]} 31. Rc6 {[%clk 0:01:10]} 31... a5 {[%clk 0:00:15.5]} 32. Rec1 {[%clk
0:00:57.6]} 32... Red8 {[%clk 0:00:13.4]} 33. Rxc7 {[%clk 0:00:56.5]} 33... Rxc7
{[%clk 0:00:10.4]} 34. Rxc7 {[%clk 0:00:55.6]} 34... Qd6 {[%clk 0:00:10.7]} 35.
Rxe7+ {[%clk 0:00:53.4]} 35... Kg8 {[%clk 0:00:10.5]} 36. Qe3 {[%clk 0:00:34.3]}
36... Nxd5 {[%clk 0:00:06.1]} 37. Re8+ {[%clk 0:00:33.8]} 37... Kh7 {[%clk
0:00:01.9]} 38. Bxd5 {[%clk 0:00:31.7]} 38... Qxd5 {[%clk 0:00:02.2]} 39. Qe7+
{[%clk 0:00:30.8]} 1-0

[Event "*** SCC Grand Prix: Titled Tuesday Blitz"]
[Site "Chess.com"]
[Date "2020.09.29"]
[Round "3"]
[White "jerry_77"]
[Black "Akmal_Fayzullaev"]
[Result "0-1"]
[WhiteElo "2468"]
[BlackElo "2265"]
[TimeControl "180+1"]
[EndTime "10:27:46 PDT"]
[Termination "Akmal_Fayzullaev won by checkmate"]

1. e4 {[%clk 0:03:00.9]} 1... e5 {[%clk 0:02:58.9]} 2. Nf3 {[%clk 0:03:01]} 2...
Nc6 {[%clk 0:02:58]} 3. Bc4 {[%clk 0:03:01.5]} 3... Nf6 {[%clk 0:02:57.3]} 4.
O-O {[%clk 0:03:02]} 4... Bc5 {[%clk 0:02:53.3]} 5. d4 {[%clk 0:02:58.3]} 5...
Bxd4 {[%clk 0:02:52.9]} 6. Nxd4 {[%clk 0:02:58.7]} 6... Nxd4 {[%clk 0:02:53.8]}
7. Bg5 {[%clk 0:02:58.6]} 7... h6 {[%clk 0:02:50.6]} 8. Bh4 {[%clk 0:02:58.1]}
8... d6 {[%clk 0:02:50]} 9. f4 {[%clk 0:02:55.7]} 9... Qe7 {[%clk 0:02:49.8]}
10. Nc3 {[%clk 0:02:54.7]} 10... c6 {[%clk 0:02:46.5]} 11. fxe5 {[%clk
0:02:53.6]} 11... dxe5 {[%clk 0:02:47.4]} 12. Bxf6 {[%clk 0:02:52.9]} 12... gxf6
{[%clk 0:02:48.3]} 13. Kh1 {[%clk 0:02:50.1]} 13... Rg8 {[%clk 0:02:44.1]} 14.
Rf2 {[%clk 0:02:49.7]} 14... Bg4 {[%clk 0:02:29.6]} 15. Qf1 {[%clk 0:02:30]}
15... Rg6 {[%clk 0:02:28.1]} 16. Nd1 {[%clk 0:02:28.6]} 16... Be6 {[%clk
0:01:51.1]} 17. c3 {[%clk 0:02:16.1]} 17... Bxc4 {[%clk 0:01:48.7]} 18. Qxc4
{[%clk 0:02:17]} 18... Nb5 {[%clk 0:01:45.4]} 19. Ne3 {[%clk 0:02:11.1]} 19...
Nd6 {[%clk 0:01:45.1]} 20. Qd3 {[%clk 0:02:11.1]} 20... O-O-O {[%clk 0:01:44.5]}
21. Qc2 {[%clk 0:02:11.1]} 21... h5 {[%clk 0:01:30.6]} 22. a4 {[%clk 0:02:08.7]}
22... h4 {[%clk 0:01:29.2]} 23. c4 {[%clk 0:02:07.3]} 23... Ne8 {[%clk
0:01:06.8]} 24. Nf5 {[%clk 0:02:04.6]} 24... Qc5 {[%clk 0:01:05.6]} 25. Rb1
{[%clk 0:02:01.2]} 25... h3 {[%clk 0:01:02.5]} 26. g3 {[%clk 0:01:55.5]} 26...
a5 {[%clk 0:01:01.4]} 27. b3 {[%clk 0:01:50.1]} 27... Nc7 {[%clk 0:00:59.6]} 28.
Rd2 {[%clk 0:01:46.5]} 28... Rgg8 {[%clk 0:00:58]} 29. Rbd1 {[%clk 0:01:28]}
29... Ne6 {[%clk 0:00:56.1]} 30. Nd6+ {[%clk 0:01:10.6]} 30... Kc7 {[%clk
0:00:54.9]} 31. Nxf7 {[%clk 0:01:09.1]} 31... Rxd2 {[%clk 0:00:34.7]} 32. Qxd2
{[%clk 0:01:10]} 32... Nd4 {[%clk 0:00:34.5]} 33. Nh6 {[%clk 0:01:07.2]} 33...
Rd8 {[%clk 0:00:32.9]} 34. Nf5 {[%clk 0:01:05.9]} 34... Ne6 {[%clk 0:00:29.6]}
35. Qe2 {[%clk 0:01:00]} 35... Rxd1+ {[%clk 0:00:11.7]} 36. Qxd1 {[%clk
0:01:00.3]} 36... Qf2 {[%clk 0:00:12.3]} 37. Nh4 {[%clk 0:01:00.5]} 37... Nd4
{[%clk 0:00:10.8]} 38. c5 {[%clk 0:00:51.4]} 38... Kb8 {[%clk 0:00:08.2]} 39.
Qg1 {[%clk 0:00:43]} 39... Qe2 {[%clk 0:00:07.9]} 40. Qb1 {[%clk 0:00:19.6]}
40... Nf3 {[%clk 0:00:07.1]} 41. Qg1 {[%clk 0:00:18.6]} 41... Nxg1 {[%clk
0:00:06.7]} 42. Kxg1 {[%clk 0:00:19.5]} 42... Qe1# {[%clk 0:00:06.9]} 0-1

[Event "*** SCC Grand Prix: Titled Tuesday Blitz"]
[Site "Chess.com"]
[Date "2020.09.29"]
[Round "3"]
[White "FearNoEvil12"]
[Black "tomsishere"]
[Result "0-1"]
[WhiteElo "2063"]
[BlackElo "2349"]
[TimeControl "180+1"]
[EndTime "10:27:46 PDT"]
[Termination "tomsishere won by checkmate"]

1. e4 {[%clk 0:03:00.9]} 1... b6 {[%clk 0:03:00.1]} 2. d4 {[%clk 0:02:59.2]}
2... Bb7 {[%clk 0:03:01]} 3. Nc3 {[%clk 0:02:58.4]} 3... e6 {[%clk 0:03:01.9]}
4. Bd3 {[%clk 0:02:57.9]} 4... Bb4 {[%clk 0:03:02.4]} 5. Qe2 {[%clk 0:02:57.6]}
5... Nf6 {[%clk 0:03:01.6]} 6. f4 {[%clk 0:02:51.4]} 6... c5 {[%clk 0:03:01]} 7.
a3 {[%clk 0:02:49.1]} 7... cxd4 {[%clk 0:02:57.6]} 8. axb4 {[%clk 0:02:47]} 8...
dxc3 {[%clk 0:02:57.5]} 9. bxc3 {[%clk 0:02:47.3]} 9... Qc7 {[%clk 0:02:56.7]}
10. Bd2 {[%clk 0:02:46]} 10... Nc6 {[%clk 0:02:53.1]} 11. Nf3 {[%clk 0:02:42.8]}
11... d5 {[%clk 0:02:51]} 12. e5 {[%clk 0:02:40.5]} 12... Ne4 {[%clk 0:02:51]}
13. Bxe4 {[%clk 0:02:33]} 13... dxe4 {[%clk 0:02:51.9]} 14. Ng5 {[%clk
0:02:31.6]} 14... Ne7 {[%clk 0:02:02.1]} 15. Nxe4 {[%clk 0:02:25.1]} 15... Nf5
{[%clk 0:01:54.9]} 16. O-O {[%clk 0:02:14.2]} 16... Qc6 {[%clk 0:01:52.7]} 17.
Rae1 {[%clk 0:02:01.3]} 17... Rd8 {[%clk 0:01:45.8]} 18. b5 {[%clk 0:01:56.3]}
18... Qxe4 {[%clk 0:01:44.6]} 19. Qxe4 {[%clk 0:01:54.2]} 19... Bxe4 {[%clk
0:01:45.5]} 20. Rxe4 {[%clk 0:01:53.5]} 20... Rxd2 {[%clk 0:01:44.7]} 21. Rc4
{[%clk 0:01:51.5]} 21... Kd7 {[%clk 0:01:43.5]} 22. Ra1 {[%clk 0:01:50.6]} 22...
Rc8 {[%clk 0:01:34.4]} 23. Rxa7+ {[%clk 0:01:48]} 23... Kd8 {[%clk 0:01:34.5]}
24. Rxc8+ {[%clk 0:01:38.9]} 24... Kxc8 {[%clk 0:01:35.4]} 25. Rxf7 {[%clk
0:01:37.6]} 25... Ne3 {[%clk 0:01:32.6]} 26. g3 {[%clk 0:01:33.4]} 26... Rg2+
{[%clk 0:01:32.3]} 27. Kh1 {[%clk 0:01:32.3]} 27... Rxc2 {[%clk 0:01:31.6]} 28.
h4 {[%clk 0:01:31.7]} 28... Nf5 {[%clk 0:01:26.6]} 29. g4 {[%clk 0:01:30.7]}
29... Nxh4 {[%clk 0:01:25.7]} 30. Kg1 {[%clk 0:01:27.8]} 30... Nf3+ {[%clk
0:01:19.4]} 31. Kf1 {[%clk 0:01:27.3]} 31... g5 {[%clk 0:01:15.3]} 32. f5 {[%clk
0:01:19]} 32... exf5 {[%clk 0:01:13.3]} 33. Rxf5 {[%clk 0:01:13.3]} 33... Nh2+
{[%clk 0:01:13]} 34. Kg1 {[%clk 0:01:11.6]} 34... Nxg4 {[%clk 0:01:13.9]} 35.
Rxg5 {[%clk 0:01:10.6]} 35... Nh2 {[%clk 0:01:07.8]} 36. Rh5 {[%clk 0:01:08.2]}
36... Nf3+ {[%clk 0:01:07]} 37. Kf1 {[%clk 0:01:08.5]} 37... Rxc3 {[%clk
0:01:01.7]} 38. Rxh7 {[%clk 0:00:59]} 38... Nxe5 {[%clk 0:01:01.3]} 39. Rh6
{[%clk 0:00:57.5]} 39... Nd7 {[%clk 0:00:59.6]} 40. Ke2 {[%clk 0:00:53.5]} 40...
Rc5 {[%clk 0:00:59.2]} 41. Kd3 {[%clk 0:00:46.6]} 41... Rxb5 {[%clk 0:00:59.1]}
42. Kc4 {[%clk 0:00:46.7]} 42... Rc5+ {[%clk 0:00:59.2]} 43. Kb4 {[%clk
0:00:47.1]} 43... Kc7 {[%clk 0:00:59.5]} 44. Rg6 {[%clk 0:00:45]} 44... Rf5
{[%clk 0:00:58.2]} 45. Rh6 {[%clk 0:00:44.5]} 45... Ne5 {[%clk 0:00:57.9]} 46.
Kb3 {[%clk 0:00:41.8]} 46... Rf4 {[%clk 0:00:56.5]} 47. Re6 {[%clk 0:00:38.5]}
47... Nc6 {[%clk 0:00:55.4]} 48. Rh6 {[%clk 0:00:37.4]} 48... b5 {[%clk
0:00:55.5]} 49. Rh7+ {[%clk 0:00:36.2]} 49... Kb6 {[%clk 0:00:55.7]} 50. Rh5
{[%clk 0:00:35.3]} 50... Rf3+ {[%clk 0:00:55.4]} 51. Kb2 {[%clk 0:00:34]} 51...
Ka5 {[%clk 0:00:55.5]} 52. Rg5 {[%clk 0:00:32.3]} 52... Ka4 {[%clk 0:00:55.1]}
53. Rg6 {[%clk 0:00:26.6]} 53... Nd4 {[%clk 0:00:53.3]} 54. Rg4 {[%clk
0:00:24.6]} 54... Rd3 {[%clk 0:00:52]} 55. Ka2 {[%clk 0:00:18.9]} 55... b4
{[%clk 0:00:52]} 56. Kb2 {[%clk 0:00:18.5]} 56... Rd2+ {[%clk 0:00:51.6]} 57.
Kb1 {[%clk 0:00:18.2]} 57... Ka3 {[%clk 0:00:46.4]} 58. Rg3+ {[%clk 0:00:16.4]}
58... b3 {[%clk 0:00:45.2]} 59. Rg1 {[%clk 0:00:17.3]} 59... Ne2 {[%clk
0:00:43.1]} 60. Rf1 {[%clk 0:00:15.3]} 60... Nc3+ {[%clk 0:00:42.9]} 61. Kc1
{[%clk 0:00:15.7]} 61... Rc2# {[%clk 0:00:42.8]} 0-1

[Event "*** SCC Grand Prix: Titled Tuesday Blitz"]
[Site "Chess.com"]
[Date "2020.09.29"]
[Round "3"]
[White "gixfantastix"]
[Black "ajdemipopushi"]
[Result "1-0"]
[WhiteElo "2088"]
[BlackElo "2330"]
[TimeControl "180+1"]
[EndTime "10:27:47 PDT"]
[Termination "gixfantastix won on time"]

1. e4 {[%clk 0:03:00.9]} 1... c5 {[%clk 0:02:57]} 2. Nc3 {[%clk 0:03:01.8]} 2...
g6 {[%clk 0:02:57.3]} 3. g4 {[%clk 0:03:00.5]} 3... Bg7 {[%clk 0:02:53.5]} 4. d3
{[%clk 0:03:00.4]} 4... Nc6 {[%clk 0:02:52.7]} 5. Be3 {[%clk 0:03:00.1]} 5... d6
{[%clk 0:02:50.5]} 6. h3 {[%clk 0:02:59]} 6... Rb8 {[%clk 0:02:35.4]} 7. Bg2
{[%clk 0:02:54.5]} 7... b5 {[%clk 0:02:30.2]} 8. Qd2 {[%clk 0:02:47.3]} 8... h5
{[%clk 0:02:22]} 9. gxh5 {[%clk 0:02:45.9]} 9... Rxh5 {[%clk 0:02:18.2]} 10.
Nge2 {[%clk 0:02:33]} 10... Nd4 {[%clk 0:02:14.9]} 11. Ng3 {[%clk 0:02:27.2]}
11... Rh8 {[%clk 0:01:49.9]} 12. O-O-O {[%clk 0:02:27.1]} 12... Qa5 {[%clk
0:01:37.6]} 13. Kb1 {[%clk 0:02:25.2]} 13... b4 {[%clk 0:01:35.3]} 14. Nce2
{[%clk 0:02:22.2]} 14... Be6 {[%clk 0:01:29]} 15. Nc1 {[%clk 0:02:19.3]} 15...
Rb6 {[%clk 0:01:20.7]} 16. Nge2 {[%clk 0:01:32.8]} 16... Ra6 {[%clk 0:01:20.5]}
17. b3 {[%clk 0:01:32.7]} 17... Nb5 {[%clk 0:01:13.8]} 18. d4 {[%clk 0:01:31.6]}
18... cxd4 {[%clk 0:01:03.9]} 19. Bxd4 {[%clk 0:01:28.1]} 19... Bxd4 {[%clk
0:00:50]} 20. Nxd4 {[%clk 0:01:29]} 20... Nc3+ {[%clk 0:00:49.2]} 21. Qxc3
{[%clk 0:01:15.4]} 21... bxc3 {[%clk 0:00:47.9]} 22. a4 {[%clk 0:00:50.3]} 22...
Rb6 {[%clk 0:00:41.2]} 23. Ka1 {[%clk 0:00:34.1]} 23... Nf6 {[%clk 0:00:39.4]}
24. Na2 {[%clk 0:00:24.1]} 24... Rh4 {[%clk 0:00:17.2]} 25. f3 {[%clk
0:00:22.3]} 25... Nd7 {[%clk 0:00:15]} 26. Nxe6 {[%clk 0:00:17.1]} 26... fxe6
{[%clk 0:00:14.8]} 27. Rd3 {[%clk 0:00:16.4]} 27... Rc6 {[%clk 0:00:11.9]} 28.
Rhd1 {[%clk 0:00:15.2]} 28... Ne5 {[%clk 0:00:11.4]} 29. Rd4 {[%clk 0:00:14.9]}
29... Rf4 {[%clk 0:00:10.1]} 30. Rb4 {[%clk 0:00:13.4]} 30... Nxf3 {[%clk
0:00:08.9]} 31. Rf1 {[%clk 0:00:12]} 31... Nh4 {[%clk 0:00:04.7]} 32. Rxf4
{[%clk 0:00:11.5]} 32... Nxg2 {[%clk 0:00:04.8]} 33. Rb8+ {[%clk 0:00:11.1]}
33... Kd7 {[%clk 0:00:04.7]} 34. Rff8 {[%clk 0:00:11.6]} 34... Ne3 {[%clk
0:00:01]} 35. Rb7+ {[%clk 0:00:10.9]} 1-0

[Event "*** SCC Grand Prix: Titled Tuesday Blitz"]
[Site "Chess.com"]
[Date "2020.09.29"]
[Round "3"]
[White "almaguerjm"]
[Black "FLamps8"]
[Result "1-0"]
[WhiteElo "2321"]
[BlackElo "2496"]
[TimeControl "180+1"]
[EndTime "10:27:48 PDT"]
[Termination "almaguerjm won by resignation"]

1. d4 {[%clk 0:01:42.5]} 1... d5 {[%clk 0:02:46.4]} 2. Bf4 {[%clk 0:01:40.4]}
2... c5 {[%clk 0:02:27.6]} 3. e3 {[%clk 0:01:39.7]} 3... Nc6 {[%clk 0:02:12.7]}
4. Nc3 {[%clk 0:01:25.5]} 4... a6 {[%clk 0:02:01.2]} 5. Nf3 {[%clk 0:01:24.1]}
5... cxd4 {[%clk 0:01:57.7]} 6. exd4 {[%clk 0:01:23]} 6... Bg4 {[%clk
0:01:58.2]} 7. Be2 {[%clk 0:01:20.9]} 7... e6 {[%clk 0:01:58]} 8. Ne5 {[%clk
0:01:20.8]} 8... Bxe2 {[%clk 0:01:51.9]} 9. Nxe2 {[%clk 0:01:21]} 9... Nf6
{[%clk 0:01:50.3]} 10. Nxc6 {[%clk 0:01:20.1]} 10... bxc6 {[%clk 0:01:43.8]} 11.
c3 {[%clk 0:01:20]} 11... Bd6 {[%clk 0:01:44.2]} 12. Qa4 {[%clk 0:01:18.9]}
12... Qd7 {[%clk 0:01:40.9]} 13. O-O {[%clk 0:01:17.2]} 13... O-O {[%clk
0:01:39.4]} 14. Rfd1 {[%clk 0:01:07.1]} 14... Rab8 {[%clk 0:01:35.9]} 15. Rd2
{[%clk 0:01:04.8]} 15... Ne4 {[%clk 0:01:34.9]} 16. Rc2 {[%clk 0:01:04.6]} 16...
Rb6 {[%clk 0:01:28.3]} 17. f3 {[%clk 0:01:01.2]} 17... Bxf4 {[%clk 0:01:25.9]}
18. Nxf4 {[%clk 0:01:00.6]} 18... Nd6 {[%clk 0:01:26.2]} 19. Nd3 {[%clk
0:01:00.1]} 19... Rfb8 {[%clk 0:01:23.7]} 20. Nc5 {[%clk 0:00:59.7]} 20... Qc8
{[%clk 0:01:21.6]} 21. b4 {[%clk 0:00:52.7]} 21... Nc4 {[%clk 0:01:21]} 22. Re1
{[%clk 0:00:47.5]} 22... Ra8 {[%clk 0:01:18.8]} 23. a3 {[%clk 0:00:39.7]} 23...
a5 {[%clk 0:01:17.8]} 24. Qb3 {[%clk 0:00:35.9]} 24... axb4 {[%clk 0:01:17.1]}
25. axb4 {[%clk 0:00:36.1]} 25... Ra3 {[%clk 0:01:16.1]} 26. Qb1 {[%clk
0:00:36.6]} 26... Qa8 {[%clk 0:01:15.8]} 27. f4 {[%clk 0:00:33.4]} 27... Nd6
{[%clk 0:01:08.5]} 28. g4 {[%clk 0:00:27.3]} 28... Nb5 {[%clk 0:00:58.1]} 29.
Qc1 {[%clk 0:00:23.9]} 29... Ra2 {[%clk 0:00:53.2]} 30. f5 {[%clk 0:00:17.5]}
30... Rxc2 {[%clk 0:00:49]} 31. Qxc2 {[%clk 0:00:17.4]} 31... Qa3 {[%clk
0:00:48.8]} 32. fxe6 {[%clk 0:00:17.3]} 32... fxe6 {[%clk 0:00:49.7]} 33. Re3
{[%clk 0:00:13.6]} 33... Nxd4 {[%clk 0:00:46.4]} 34. Qf2 {[%clk 0:00:12.1]}
34... Qc1+ {[%clk 0:00:29.3]} 35. Kg2 {[%clk 0:00:11.9]} 35... Nc2 {[%clk
0:00:19.5]} 36. Rxe6 {[%clk 0:00:07.9]} 36... Rb8 {[%clk 0:00:19.8]} 37. Nd7
{[%clk 0:00:07.8]} 37... Rd8 {[%clk 0:00:19.3]} 38. Re7 {[%clk 0:00:08.1]} 38...
Qg5 {[%clk 0:00:15]} 39. Qf7+ {[%clk 0:00:08.3]} 39... Kh8 {[%clk 0:00:15.1]}
40. Re8+ {[%clk 0:00:08.5]} 1-0